[Event "*** SCC Grand Prix: Titled Tuesday Blitz"]
[Site "Chess.com"]
[Date "2020.07.14"]
[Round "6"]
[White "econpower"]
[Black "Artyom_ChessMate"]
[Result "1-0"]
[WhiteElo "2680"]
[BlackElo "2510"]
[TimeControl "180+1"]
[EndTime "11:07:01 PDT"]
[Termination "econpower won on time"]

1. c4 {[%clk 0:03:00.9]} 1... e6 {[%clk 0:03:00]} 2. g3 {[%clk 0:03:00.9]} 2...
d5 {[%clk 0:03:00.9]} 3. Bg2 {[%clk 0:03:01.2]} 3... Nf6 {[%clk 0:03:01.3]} 4.
Nf3 {[%clk 0:03:01.5]} 4... Be7 {[%clk 0:03:01.9]} 5. O-O {[%clk 0:03:01.8]}
5... O-O {[%clk 0:03:02.6]} 6. Qc2 {[%clk 0:03:02.4]} 6... d4 {[%clk 0:02:56.7]}
7. d3 {[%clk 0:03:02.1]} 7... Nc6 {[%clk 0:02:37.5]} 8. e3 {[%clk 0:02:55.2]}
8... dxe3 {[%clk 0:02:29.7]} 9. Bxe3 {[%clk 0:02:55]} 9... Nb4 {[%clk
0:02:29.9]} 10. Qb3 {[%clk 0:02:54.6]} 10... Qxd3 {[%clk 0:02:28.4]} 11. Nc3
{[%clk 0:02:54.8]} 11... Qc2 {[%clk 0:02:00.2]} 12. Rfc1 {[%clk 0:01:23.5]}
12... Qxb3 {[%clk 0:01:29.2]} 13. axb3 {[%clk 0:01:24.4]} 13... Rd8 {[%clk
0:00:59.7]} 14. Ne5 {[%clk 0:01:10.3]} 14... a6 {[%clk 0:00:31.8]} 15. Na4
{[%clk 0:01:03.8]} 15... Ne8 {[%clk 0:00:17.7]} 16. Bc5 {[%clk 0:00:51.1]} 16...
Bxc5 {[%clk 0:00:14]} 17. Nxc5 {[%clk 0:00:52]} 17... Nd6 {[%clk 0:00:14.2]} 18.
Rd1 {[%clk 0:00:51.1]} 18... Rf8 {[%clk 0:00:10]} 19. Ra4 {[%clk 0:00:49.6]}
19... Nc2 {[%clk 0:00:06.4]} 20. Rd2 {[%clk 0:00:46.5]} 20... b5 {[%clk
0:00:03]} 21. Bxa8 {[%clk 0:00:44.8]} 21... bxa4 {[%clk 0:00:03]} 22. Rxc2
{[%clk 0:00:45.4]} 22... axb3 {[%clk 0:00:03.9]} 23. Nxb3 {[%clk 0:00:45.5]}
23... a5 {[%clk 0:00:03.6]} 24. Nxa5 {[%clk 0:00:44.6]} 24... f6 {[%clk
0:00:03.4]} 25. Nf3 {[%clk 0:00:38.8]} 25... e5 {[%clk 0:00:03.6]} 26. Bd5+
{[%clk 0:00:38.4]} 26... Kh8 {[%clk 0:00:04]} 27. c5 {[%clk 0:00:37.8]} 27...
Nb5 {[%clk 0:00:04.1]} 28. Bc4 {[%clk 0:00:37.1]} 28... Na7 {[%clk 0:00:03.5]}
29. b4 {[%clk 0:00:36.6]} 29... Bf5 {[%clk 0:00:03.5]} 30. Rd2 {[%clk
0:00:37.1]} 30... Bg4 {[%clk 0:00:03.5]} 31. Kg2 {[%clk 0:00:37.1]} 31... g6
{[%clk 0:00:03.7]} 32. h3 {[%clk 0:00:37.5]} 32... Bf5 {[%clk 0:00:03.7]} 33. g4
{[%clk 0:00:37.7]} 33... Bc8 {[%clk 0:00:04.2]} 34. g5 {[%clk 0:00:38.1]} 34...
Kg7 {[%clk 0:00:03.4]} 35. gxf6+ {[%clk 0:00:38.2]} 35... Kxf6 {[%clk
0:00:04.3]} 36. Re2 {[%clk 0:00:35.5]} 36... Re8 {[%clk 0:00:02.7]} 37. Nd2
{[%clk 0:00:36.1]} 37... Bf5 {[%clk 0:00:02.2]} 38. Ne4+ {[%clk 0:00:35.2]}
38... Kg7 {[%clk 0:00:02.7]} 39. Ng3 {[%clk 0:00:34.8]} 1-0

[Event "*** SCC Grand Prix: Titled Tuesday Blitz"]
[Site "Chess.com"]
[Date "2020.07.14"]
[Round "6"]
[White "DaggiGretarsson"]
[Black "Haapana"]
[Result "1-0"]
[WhiteElo "2582"]
[BlackElo "2336"]
[TimeControl "180+1"]
[EndTime "11:07:03 PDT"]
[Termination "DaggiGretarsson won on time"]

1. d4 {[%clk 0:02:59.9]} 1... d5 {[%clk 0:02:51.3]} 2. c4 {[%clk 0:02:58.6]}
2... e6 {[%clk 0:02:51.6]} 3. Nc3 {[%clk 0:02:57.6]} 3... c5 {[%clk 0:02:51.9]}
4. cxd5 {[%clk 0:02:55.5]} 4... exd5 {[%clk 0:02:52.8]} 5. Nf3 {[%clk
0:02:53.2]} 5... Nc6 {[%clk 0:02:53.2]} 6. g3 {[%clk 0:02:52.9]} 6... Nf6 {[%clk
0:02:53.4]} 7. Bg2 {[%clk 0:02:53]} 7... Be7 {[%clk 0:02:53.6]} 8. O-O {[%clk
0:02:52.6]} 8... O-O {[%clk 0:02:50.5]} 9. Bg5 {[%clk 0:02:52.2]} 9... c4 {[%clk
0:02:33.2]} 10. Ne5 {[%clk 0:02:42.5]} 10... Be6 {[%clk 0:02:28.5]} 11. e3
{[%clk 0:02:41.5]} 11... Nd7 {[%clk 0:01:47.7]} 12. Bxe7 {[%clk 0:02:35.1]}
12... Nxe7 {[%clk 0:01:47.9]} 13. Nf3 {[%clk 0:02:15]} 13... Nf6 {[%clk
0:01:28.9]} 14. b3 {[%clk 0:02:07.1]} 14... Qa5 {[%clk 0:01:24.6]} 15. Qd2
{[%clk 0:02:06.8]} 15... Rac8 {[%clk 0:01:19.6]} 16. Rfc1 {[%clk 0:01:55.1]}
16... Rfd8 {[%clk 0:01:07.5]} 17. h3 {[%clk 0:01:30.8]} 17... Bf5 {[%clk
0:00:58.8]} 18. bxc4 {[%clk 0:01:17.3]} 18... dxc4 {[%clk 0:00:46.6]} 19. Ne5
{[%clk 0:01:13.1]} 19... Qxe5 {[%clk 0:00:37.9]} 20. Bxb7 {[%clk 0:01:06.9]}
20... Rb8 {[%clk 0:00:32]} 21. Bg2 {[%clk 0:01:05.2]} 21... Qa5 {[%clk
0:00:28.1]} 22. e4 {[%clk 0:01:03.4]} 22... Bg6 {[%clk 0:00:20.1]} 23. d5 {[%clk
0:01:01.6]} 23... Nd7 {[%clk 0:00:15.7]} 24. Qd4 {[%clk 0:01:00.8]} 24... Qc5
{[%clk 0:00:13.2]} 25. Rd1 {[%clk 0:00:57.5]} 25... Qxd4 {[%clk 0:00:12.8]} 26.
Rxd4 {[%clk 0:00:57.6]} 26... Nb6 {[%clk 0:00:12.9]} 27. a4 {[%clk 0:00:56]}
27... Rbc8 {[%clk 0:00:12.3]} 28. a5 {[%clk 0:00:54.9]} 28... Nd7 {[%clk
0:00:12.2]} 29. Nb5 {[%clk 0:00:51.5]} 29... a6 {[%clk 0:00:11.5]} 30. Nd6
{[%clk 0:00:51.2]} 30... Rc7 {[%clk 0:00:09.9]} 31. Nxc4 {[%clk 0:00:50.2]}
31... Rc5 {[%clk 0:00:09.1]} 32. e5 {[%clk 0:00:43.7]} 32... f6 {[%clk
0:00:06.9]} 33. e6 {[%clk 0:00:42.1]} 33... Ne5 {[%clk 0:00:07]} 34. Nb6 {[%clk
0:00:42]} 34... N7c6 {[%clk 0:00:05.1]} 35. Rd2 {[%clk 0:00:40.5]} 35... Nb4
{[%clk 0:00:04.4]} 36. d6 {[%clk 0:00:38.5]} 36... Nbd3 {[%clk 0:00:01.5]} 37.
f4 {[%clk 0:00:28.2]} 1-0

[Event "*** SCC Grand Prix: Titled Tuesday Blitz"]
[Site "Chess.com"]
[Date "2020.07.14"]
[Round "6"]
[White "mohssenbinaddi"]
[Black "ailime26"]
[Result "1-0"]
[WhiteElo "2159"]
[BlackElo "1865"]
[TimeControl "180+1"]
[EndTime "11:07:03 PDT"]
[Termination "mohssenbinaddi won by resignation"]

1. Nf3 {[%clk 0:03:00.9]} 1... d5 {[%clk 0:02:44.3]} 2. g3 {[%clk 0:02:59.3]}
2... Nf6 {[%clk 0:02:42.3]} 3. Bg2 {[%clk 0:02:58.8]} 3... e6 {[%clk 0:02:40.5]}
4. c4 {[%clk 0:02:58.9]} 4... Be7 {[%clk 0:02:36.6]} 5. O-O {[%clk 0:02:59.8]}
5... O-O {[%clk 0:02:33]} 6. b3 {[%clk 0:03:00]} 6... Nbd7 {[%clk 0:02:27.5]} 7.
Bb2 {[%clk 0:02:59.7]} 7... b6 {[%clk 0:02:25.1]} 8. Nc3 {[%clk 0:02:55.3]} 8...
Bb7 {[%clk 0:02:22.6]} 9. d4 {[%clk 0:02:52.9]} 9... c5 {[%clk 0:01:56.1]} 10.
cxd5 {[%clk 0:02:45.3]} 10... Nxd5 {[%clk 0:01:53.6]} 11. Ne4 {[%clk 0:02:32.8]}
11... Ne3 {[%clk 0:01:32.2]} 12. fxe3 {[%clk 0:02:15.9]} 12... Bxe4 {[%clk
0:01:28.6]} 13. Qe1 {[%clk 0:02:03.3]} 13... Nf6 {[%clk 0:01:22.6]} 14. Rd1
{[%clk 0:02:00.2]} 14... Qc7 {[%clk 0:01:16.6]} 15. Ne5 {[%clk 0:01:57.1]} 15...
Bxg2 {[%clk 0:01:10.4]} 16. Kxg2 {[%clk 0:01:58]} 16... Nd5 {[%clk 0:01:08.2]}
17. Qf2 {[%clk 0:01:53.3]} 17... f6 {[%clk 0:00:56.6]} 18. Nd3 {[%clk
0:01:43.1]} 18... Qb7 {[%clk 0:00:48.3]} 19. Kg1 {[%clk 0:01:27.8]} 19... f5
{[%clk 0:00:45.8]} 20. Qf3 {[%clk 0:01:25.6]} 20... Bg5 {[%clk 0:00:43.2]} 21.
Nf4 {[%clk 0:01:19.3]} 21... Qd7 {[%clk 0:00:37.1]} 22. dxc5 {[%clk 0:01:16.1]}
22... bxc5 {[%clk 0:00:31.8]} 23. Nxd5 {[%clk 0:01:14.6]} 23... exd5 {[%clk
0:00:30]} 24. Rxd5 {[%clk 0:01:14]} 24... Bxe3+ {[%clk 0:00:19.9]} 25. Kg2
{[%clk 0:01:13.5]} 25... Qe6 {[%clk 0:00:17.3]} 26. Rxf5 {[%clk 0:01:10.6]}
26... Rxf5 {[%clk 0:00:15.7]} 27. Qxf5 {[%clk 0:01:10.6]} 27... Qxf5 {[%clk
0:00:15.6]} 28. Rxf5 {[%clk 0:01:09.4]} 28... Re8 {[%clk 0:00:15.9]} 29. Re5
{[%clk 0:01:06.1]} 29... Rxe5 {[%clk 0:00:10.8]} 30. Bxe5 {[%clk 0:01:07]} 30...
Kf7 {[%clk 0:00:10.4]} 31. Kf3 {[%clk 0:01:06.7]} 31... Bg1 {[%clk 0:00:09.1]}
32. h3 {[%clk 0:01:07.1]} 32... g6 {[%clk 0:00:06.5]} 33. Ke4 {[%clk 0:01:08]}
33... Ke6 {[%clk 0:00:05.9]} 34. Bb8 {[%clk 0:01:07.5]} 34... a6 {[%clk
0:00:04.6]} 35. Ba7 {[%clk 0:01:06]} 35... Kd6 {[%clk 0:00:04]} 36. Bb8+ {[%clk
0:01:04]} 36... Kc6 {[%clk 0:00:03.6]} 37. g4 {[%clk 0:00:59.3]} 37... Bd4
{[%clk 0:00:03.3]} 38. e3 {[%clk 0:00:58.7]} 38... Bf6 {[%clk 0:00:03.2]} 39.
Be5 {[%clk 0:00:57.2]} 39... Bh4 {[%clk 0:00:03.5]} 40. Bf4 {[%clk 0:00:54.4]}
40... Be7 {[%clk 0:00:02.9]} 41. Ke5 {[%clk 0:00:54]} 41... Bd6+ {[%clk
0:00:02.3]} 42. Ke6 {[%clk 0:00:54.4]} 42... Bxf4 {[%clk 0:00:01.7]} 43. exf4
{[%clk 0:00:55.3]} 43... a5 {[%clk 0:00:01.8]} 44. f5 {[%clk 0:00:56]} 44... a4
{[%clk 0:00:01.8]} 45. f6 {[%clk 0:00:56.1]} 45... axb3 {[%clk 0:00:01.8]} 46.
axb3 {[%clk 0:00:55.6]} 46... Kb5 {[%clk 0:00:02.7]} 47. f7 {[%clk 0:00:55.5]}
47... Kb4 {[%clk 0:00:03.6]} 48. f8=Q {[%clk 0:00:55.5]} 48... Kxb3 {[%clk
0:00:04.5]} 49. Qxc5 {[%clk 0:00:55.5]} 1-0

[Event "*** SCC Grand Prix: Titled Tuesday Blitz"]
[Site "Chess.com"]
[Date "2020.07.14"]
[Round "6"]
[White "bocah_sakit"]
[Black "GOGIEFF"]
[Result "0-1"]
[WhiteElo "2702"]
[BlackElo "2898"]
[TimeControl "180+1"]
[EndTime "11:07:04 PDT"]
[Termination "GOGIEFF won on time"]

1. e4 {[%clk 0:03:00.9]} 1... c5 {[%clk 0:02:57.5]} 2. Nf3 {[%clk 0:03:00.5]}
2... d6 {[%clk 0:02:57.8]} 3. d4 {[%clk 0:03:00.5]} 3... cxd4 {[%clk 0:02:58.7]}
4. Nxd4 {[%clk 0:03:01.2]} 4... Nf6 {[%clk 0:02:58.7]} 5. Nc3 {[%clk 0:03:01.8]}
5... a6 {[%clk 0:02:59]} 6. Bg5 {[%clk 0:03:00.9]} 6... Nbd7 {[%clk 0:02:58.9]}
7. f4 {[%clk 0:03:00.6]} 7... Qc7 {[%clk 0:02:57.9]} 8. Qf3 {[%clk 0:03:00.9]}
8... g6 {[%clk 0:02:54.5]} 9. O-O-O {[%clk 0:02:58.7]} 9... Bg7 {[%clk
0:02:52.3]} 10. g4 {[%clk 0:02:50.4]} 10... h6 {[%clk 0:02:36.4]} 11. Bh4 {[%clk
0:02:49.2]} 11... e5 {[%clk 0:02:34.4]} 12. Nde2 {[%clk 0:02:20.6]} 12... exf4
{[%clk 0:02:06.9]} 13. Nxf4 {[%clk 0:02:21.5]} 13... O-O {[%clk 0:02:06.9]} 14.
Nfd5 {[%clk 0:02:19.2]} 14... Nxd5 {[%clk 0:02:05.9]} 15. Nxd5 {[%clk
0:02:20.1]} 15... Qa5 {[%clk 0:02:05]} 16. Qa3 {[%clk 0:02:04.5]} 16... Qxa3
{[%clk 0:01:53.3]} 17. bxa3 {[%clk 0:02:05.4]} 17... Nc5 {[%clk 0:01:52.8]} 18.
Nb6 {[%clk 0:01:53.3]} 18... Bxg4 {[%clk 0:01:49.2]} 19. Rxd6 {[%clk 0:01:44.2]}
19... Nxe4 {[%clk 0:01:49.1]} 20. Rd3 {[%clk 0:01:38.6]} 20... Rae8 {[%clk
0:01:43.3]} 21. Bg2 {[%clk 0:01:37.1]} 21... g5 {[%clk 0:01:40.1]} 22. Be1
{[%clk 0:01:26.2]} 22... Re6 {[%clk 0:01:38.1]} 23. Bb4 {[%clk 0:01:17.5]} 23...
Nf2 {[%clk 0:01:29.2]} 24. Bxf8 {[%clk 0:01:16.6]} 24... Nxd3+ {[%clk
0:01:26.2]} 25. cxd3 {[%clk 0:01:16.5]} 25... Bxf8 {[%clk 0:01:26.3]} 26. Nc4
{[%clk 0:01:08]} 26... b5 {[%clk 0:01:25.5]} 27. Nd2 {[%clk 0:00:59.8]} 27...
Bxa3+ {[%clk 0:01:23.2]} 28. Kc2 {[%clk 0:00:58.1]} 28... Re2 {[%clk 0:01:23.1]}
29. Bf1 {[%clk 0:00:34.3]} 29... Rf2 {[%clk 0:01:22.3]} 30. Kc3 {[%clk 0:00:32]}
30... b4+ {[%clk 0:01:21.8]} 31. Kc2 {[%clk 0:00:30.7]} 31... Bd7 {[%clk
0:01:21.8]} 32. Kd1 {[%clk 0:00:27.3]} 32... Be6 {[%clk 0:01:15.9]} 33. Ke1
{[%clk 0:00:25.4]} 33... Rf4 {[%clk 0:01:15.2]} 34. Nc4 {[%clk 0:00:25.3]} 34...
a5 {[%clk 0:01:13.6]} 35. Kd2 {[%clk 0:00:23.3]} 35... Rf2+ {[%clk 0:01:10]} 36.
Be2 {[%clk 0:00:20.2]} 36... Bg4 {[%clk 0:01:10.1]} 37. Re1 {[%clk 0:00:20.6]}
37... Rxh2 {[%clk 0:01:10.2]} 38. Ke3 {[%clk 0:00:20.8]} 38... Rxe2+ {[%clk
0:01:09.3]} 39. Rxe2 {[%clk 0:00:21.7]} 39... Bc1+ {[%clk 0:01:09.6]} 40. Rd2
{[%clk 0:00:15.4]} 40... a4 {[%clk 0:01:08]} 41. d4 {[%clk 0:00:10.7]} 41... h5
{[%clk 0:01:05.4]} 42. d5 {[%clk 0:00:10.1]} 42... h4 {[%clk 0:01:05.4]} 43. Kf2
{[%clk 0:00:10.1]} 43... Bxd2 {[%clk 0:01:05.4]} 44. Nxd2 {[%clk 0:00:10]} 44...
f6 {[%clk 0:01:03.3]} 45. Ne4 {[%clk 0:00:07.2]} 45... Kf7 {[%clk 0:01:01.9]}
46. Nc5 {[%clk 0:00:07.6]} 46... a3 {[%clk 0:01:01.2]} 47. d6 {[%clk 0:00:06.1]}
47... Be6 {[%clk 0:00:59.9]} 48. d7 {[%clk 0:00:03.5]} 48... Bxd7 {[%clk
0:00:59.7]} 49. Nxd7 {[%clk 0:00:02.9]} 49... b3 {[%clk 0:01:00]} 0-1

[Event "*** SCC Grand Prix: Titled Tuesday Blitz"]
[Site "Chess.com"]
[Date "2020.07.14"]
[Round "6"]
[White "awesomevishesh"]
[Black "Azoulas1"]
[Result "0-1"]
[WhiteElo "2335"]
[BlackElo "2039"]
[TimeControl "180+1"]
[EndTime "11:07:04 PDT"]
[Termination "Azoulas1 won on time"]

1. d4 {[%clk 0:03:00.9]} 1... Nf6 {[%clk 0:02:58.2]} 2. c4 {[%clk 0:03:00.6]}
2... e6 {[%clk 0:02:56.7]} 3. g3 {[%clk 0:03:00.4]} 3... d5 {[%clk 0:02:54.1]}
4. Bg2 {[%clk 0:02:59.9]} 4... dxc4 {[%clk 0:02:49.1]} 5. Nf3 {[%clk 0:02:59.5]}
5... c6 {[%clk 0:02:46.4]} 6. Ne5 {[%clk 0:02:56.4]} 6... Nbd7 {[%clk
0:02:39.2]} 7. Nxc4 {[%clk 0:02:54.8]} 7... c5 {[%clk 0:02:38.5]} 8. O-O {[%clk
0:02:25.4]} 8... cxd4 {[%clk 0:02:30.1]} 9. Qxd4 {[%clk 0:02:11.4]} 9... Bc5
{[%clk 0:02:28.6]} 10. Qh4 {[%clk 0:01:39.1]} 10... O-O {[%clk 0:02:24.8]} 11.
Nc3 {[%clk 0:01:39]} 11... Qe7 {[%clk 0:02:21.7]} 12. a3 {[%clk 0:01:34]} 12...
a5 {[%clk 0:02:12.1]} 13. Be3 {[%clk 0:01:10.3]} 13... Bxe3 {[%clk 0:02:00.3]}
14. Nxe3 {[%clk 0:01:10]} 14... Rb8 {[%clk 0:01:52.4]} 15. Nc4 {[%clk
0:01:02.8]} 15... b6 {[%clk 0:01:46.6]} 16. e4 {[%clk 0:00:46]} 16... Qc5 {[%clk
0:01:24.6]} 17. Ne3 {[%clk 0:00:14.4]} 17... Ba6 {[%clk 0:01:20.4]} 18. Rfd1
{[%clk 0:00:13.6]} 18... Rfd8 {[%clk 0:01:13.5]} 19. Rac1 {[%clk 0:00:12.8]}
19... Ne5 {[%clk 0:00:54.3]} 20. Ncd5 {[%clk 0:00:10.5]} 20... exd5 {[%clk
0:00:41.3]} 21. Rxc5 {[%clk 0:00:09.2]} 21... bxc5 {[%clk 0:00:39.1]} 22. Nxd5
{[%clk 0:00:08.6]} 22... Nxd5 {[%clk 0:00:37.3]} 23. Rxd5 {[%clk 0:00:06.5]}
23... Rxd5 {[%clk 0:00:35.1]} 24. exd5 {[%clk 0:00:06.6]} 24... f6 {[%clk
0:00:31.7]} 25. d6 {[%clk 0:00:03.4]} 25... Rxb2 {[%clk 0:00:25]} 26. Bd5+
{[%clk 0:00:03.2]} 26... Kf8 {[%clk 0:00:21.8]} 27. Kg2 {[%clk 0:00:03]} 27...
Rb1 {[%clk 0:00:18.2]} 28. Qxh7 {[%clk 0:00:02.5]} 28... Bf1+ {[%clk 0:00:16]}
29. Kg1 {[%clk 0:00:02.5]} 29... Bd3+ {[%clk 0:00:13.1]} 0-1

[Event "*** SCC Grand Prix: Titled Tuesday Blitz"]
[Site "Chess.com"]
[Date "2020.07.14"]
[Round "6"]
[White "AungTZ"]
[Black "harkerchess"]
[Result "0-1"]
[WhiteElo "2108"]
[BlackElo "2090"]
[TimeControl "180+1"]
[EndTime "11:07:08 PDT"]
[Termination "harkerchess won on time"]

1. e4 {[%clk 0:01:06.6]} 1... e5 {[%clk 0:02:57.8]} 2. Nf3 {[%clk 0:01:05.8]}
2... Nc6 {[%clk 0:02:57.3]} 3. d4 {[%clk 0:01:06.7]} 3... exd4 {[%clk
0:02:57.1]} 4. Nxd4 {[%clk 0:01:07.6]} 4... Nf6 {[%clk 0:02:56.8]} 5. Nc3 {[%clk
0:01:07]} 5... Bb4 {[%clk 0:02:56]} 6. Nxc6 {[%clk 0:01:07.6]} 6... bxc6 {[%clk
0:02:56.9]} 7. Bd3 {[%clk 0:01:07.3]} 7... d5 {[%clk 0:02:57.3]} 8. exd5 {[%clk
0:01:08.2]} 8... cxd5 {[%clk 0:02:57.8]} 9. O-O {[%clk 0:01:07.5]} 9... O-O
{[%clk 0:02:57.9]} 10. Bg5 {[%clk 0:01:06.7]} 10... c6 {[%clk 0:02:58.4]} 11. h3
{[%clk 0:01:05.4]} 11... Be7 {[%clk 0:02:58]} 12. Qf3 {[%clk 0:01:02.1]} 12...
Be6 {[%clk 0:02:58.5]} 13. Ne2 {[%clk 0:00:59.8]} 13... c5 {[%clk 0:02:58.9]}
14. c3 {[%clk 0:00:57.8]} 14... Rb8 {[%clk 0:02:59.1]} 15. b3 {[%clk 0:00:56.1]}
15... h6 {[%clk 0:02:57.5]} 16. Bf4 {[%clk 0:00:54.9]} 16... Bd6 {[%clk
0:02:56.4]} 17. Rfd1 {[%clk 0:00:50.1]} 17... Bxf4 {[%clk 0:02:51.6]} 18. Nxf4
{[%clk 0:00:49]} 18... Qe7 {[%clk 0:02:50.9]} 19. Re1 {[%clk 0:00:46]} 19... Qd6
{[%clk 0:02:49.2]} 20. Rad1 {[%clk 0:00:44.1]} 20... Rbd8 {[%clk 0:02:40.8]} 21.
Bc2 {[%clk 0:00:37.6]} 21... Qb6 {[%clk 0:02:39.1]} 22. Nh5 {[%clk 0:00:18.9]}
22... Nxh5 {[%clk 0:02:31.8]} 23. Qxh5 {[%clk 0:00:19.8]} 23... a5 {[%clk
0:02:22]} 24. Qh4 {[%clk 0:00:19.3]} 24... Rfe8 {[%clk 0:02:19.8]} 25. Kh1
{[%clk 0:00:16.9]} 25... d4 {[%clk 0:02:16.4]} 26. cxd4 {[%clk 0:00:15.4]} 26...
cxd4 {[%clk 0:02:17.3]} 27. Bd3 {[%clk 0:00:15.6]} 27... Qc5 {[%clk 0:02:16.5]}
28. Rc1 {[%clk 0:00:14.9]} 28... Qd5 {[%clk 0:02:15.9]} 29. Bc4 {[%clk
0:00:13.6]} 29... Qb7 {[%clk 0:02:15.6]} 30. Bxe6 {[%clk 0:00:13.2]} 30... fxe6
{[%clk 0:02:16.5]} 31. Qg4 {[%clk 0:00:12.5]} 31... Qf7 {[%clk 0:02:15.4]} 32.
Re4 {[%clk 0:00:11.6]} 32... e5 {[%clk 0:02:15.3]} 33. Rce1 {[%clk 0:00:12.1]}
33... Qf6 {[%clk 0:02:13.3]} 34. R4e2 {[%clk 0:00:11.4]} 34... d3 {[%clk
0:02:13]} 35. Rd2 {[%clk 0:00:12.3]} 35... Rd4 {[%clk 0:02:04.9]} 36. Re4 {[%clk
0:00:11.6]} 36... Red8 {[%clk 0:02:03.7]} 37. f3 {[%clk 0:00:06.2]} 37... Rxe4
{[%clk 0:01:50.4]} 38. Qxe4 {[%clk 0:00:05.6]} 38... Qd6 {[%clk 0:01:50.2]} 39.
Kg1 {[%clk 0:00:03.6]} 39... Qc5+ {[%clk 0:01:47.5]} 40. Kh2 {[%clk 0:00:03.8]}
40... Qc3 {[%clk 0:01:44.6]} 41. Qe3 {[%clk 0:00:04.1]} 41... Kh7 {[%clk
0:01:40]} 42. Qe4+ {[%clk 0:00:04]} 42... Kh8 {[%clk 0:01:40.3]} 43. Qe3 {[%clk
0:00:04.9]} 43... Rd5 {[%clk 0:01:35.7]} 44. h4 {[%clk 0:00:03.6]} 44... Rd4
{[%clk 0:01:34.7]} 45. Kh3 {[%clk 0:00:04.5]} 45... Qc8+ {[%clk 0:01:30.5]} 46.
g4 {[%clk 0:00:04.1]} 46... Qc3 {[%clk 0:01:31]} 47. g5 {[%clk 0:00:02.9]} 47...
hxg5 {[%clk 0:01:28.1]} 48. Qxg5 {[%clk 0:00:02.9]} 48... Kg8 {[%clk 0:01:27.3]}
49. Kg3 {[%clk 0:00:02.7]} 49... Qa1 {[%clk 0:01:23.2]} 50. Kg2 {[%clk
0:00:01.7]} 50... Qe1 {[%clk 0:01:09.6]} 51. h5 {[%clk 0:00:02.6]} 51... e4
{[%clk 0:01:02.2]} 0-1

[Event "*** SCC Grand Prix: Titled Tuesday Blitz"]
[Site "Chess.com"]
[Date "2020.07.14"]
[Round "6"]
[White "m_ezat"]
[Black "Kolle05"]
[Result "1-0"]
[WhiteElo "2552"]
[BlackElo "2379"]
[TimeControl "180+1"]
[EndTime "11:07:12 PDT"]
[Termination "m_ezat won by resignation"]

1. d4 {[%clk 0:03:00.9]} 1... Nf6 {[%clk 0:02:59.4]} 2. c4 {[%clk 0:03:00.8]}
2... e6 {[%clk 0:02:59.5]} 3. Nc3 {[%clk 0:03:00.3]} 3... Bb4 {[%clk 0:02:59.9]}
4. e3 {[%clk 0:03:00.5]} 4... b6 {[%clk 0:02:57.3]} 5. a3 {[%clk 0:03:00.6]}
5... Bxc3+ {[%clk 0:02:55.2]} 6. bxc3 {[%clk 0:03:01.2]} 6... Bb7 {[%clk
0:02:55.6]} 7. f3 {[%clk 0:03:00.6]} 7... O-O {[%clk 0:02:55.8]} 8. Bd3 {[%clk
0:03:00.6]} 8... d6 {[%clk 0:02:55.4]} 9. Ne2 {[%clk 0:03:00.6]} 9... c5 {[%clk
0:02:53.8]} 10. O-O {[%clk 0:02:59.5]} 10... Nc6 {[%clk 0:02:54.2]} 11. e4
{[%clk 0:02:59.6]} 11... Nd7 {[%clk 0:02:47.8]} 12. Bf4 {[%clk 0:02:56]} 12...
e5 {[%clk 0:02:45.5]} 13. Bg3 {[%clk 0:02:56.3]} 13... cxd4 {[%clk 0:02:43.3]}
14. cxd4 {[%clk 0:02:55.8]} 14... Rc8 {[%clk 0:02:33.5]} 15. Rc1 {[%clk
0:02:36.2]} 15... Qe7 {[%clk 0:02:19]} 16. f4 {[%clk 0:01:59.5]} 16... Nxd4
{[%clk 0:02:13.6]} 17. Nxd4 {[%clk 0:01:58.8]} 17... exd4 {[%clk 0:02:14.5]} 18.
Re1 {[%clk 0:01:50.1]} 18... Nc5 {[%clk 0:01:59.2]} 19. e5 {[%clk 0:01:50]}
19... dxe5 {[%clk 0:01:50.2]} 20. Rxe5 {[%clk 0:01:49.7]} 20... Qf6 {[%clk
0:01:32.8]} 21. Bb1 {[%clk 0:01:38.5]} 21... Qc6 {[%clk 0:01:28.4]} 22. Rd5
{[%clk 0:01:27.7]} 22... Rcd8 {[%clk 0:01:25.4]} 23. Ba2 {[%clk 0:01:15.9]}
23... Rxd5 {[%clk 0:01:18.2]} 24. cxd5 {[%clk 0:01:15.6]} 24... Qf6 {[%clk
0:01:13.1]} 25. Bf2 {[%clk 0:01:07.3]} 25... Qxf4 {[%clk 0:00:58.7]} 26. g3
{[%clk 0:00:55.3]} 26... Qg5 {[%clk 0:00:37.2]} 27. Bxd4 {[%clk 0:00:54]} 27...
Rd8 {[%clk 0:00:12.5]} 28. Rc3 {[%clk 0:00:34]} 28... Bxd5 {[%clk 0:00:10.7]}
29. Bxc5 {[%clk 0:00:34]} 29... bxc5 {[%clk 0:00:08.6]} 30. Rd3 {[%clk
0:00:33.6]} 30... c4 {[%clk 0:00:02.2]} 31. Bxc4 {[%clk 0:00:32.6]} 31... h5
{[%clk 0:00:02.6]} 32. Bxd5 {[%clk 0:00:30.7]} 32... Kh7 {[%clk 0:00:01.7]} 33.
Be4+ {[%clk 0:00:30.2]} 33... f5 {[%clk 0:00:01.8]} 34. Bxf5+ {[%clk 0:00:22.5]}
34... Qxf5 {[%clk 0:00:02.7]} 35. Rxd8 {[%clk 0:00:22.3]} 35... Qc5+ {[%clk
0:00:03.6]} 36. Rd4 {[%clk 0:00:20.9]} 36... Qxa3 {[%clk 0:00:04.5]} 37. Qxh5+
{[%clk 0:00:20]} 1-0